[Event "*** Titled Tuesday Blitz"]
[Site "Chess.com"]
[Date "2021.03.09"]
[Round "1"]
[White "TooOldTooSlow70"]
[Black "DFeco"]
[Result "0-1"]
[WhiteElo "2538"]
[BlackElo "2269"]
[TimeControl "180+1"]
[EndTime "10:08:29 PST"]
[Termination "DFeco won by checkmate"]

1. Nf3 {[%clk 0:02:41]} 1... d5 {[%clk 0:02:59.2]} 2. d4 {[%clk 0:02:40.3]} 2...
Nf6 {[%clk 0:02:58.8]} 3. c4 {[%clk 0:02:40.5]} 3... c6 {[%clk 0:02:59]} 4. e3
{[%clk 0:02:39.8]} 4... Bf5 {[%clk 0:02:58.3]} 5. Nc3 {[%clk 0:02:36.8]} 5... a6
{[%clk 0:02:57.1]} 6. Bd3 {[%clk 0:02:32.5]} 6... Bg6 {[%clk 0:02:55]} 7. O-O
{[%clk 0:02:31.8]} 7... e6 {[%clk 0:02:52.2]} 8. b3 {[%clk 0:02:26.4]} 8... Nbd7
{[%clk 0:02:50.1]} 9. Bb2 {[%clk 0:02:24.2]} 9... Bd6 {[%clk 0:02:45.7]} 10. h3
{[%clk 0:02:23.7]} 10... O-O {[%clk 0:02:42.4]} 11. Qe2 {[%clk 0:02:18.7]} 11...
Qe7 {[%clk 0:02:33.5]} 12. a3 {[%clk 0:02:05.6]} 12... Rac8 {[%clk 0:02:27.2]}
13. e4 {[%clk 0:01:59.1]} 13... dxe4 {[%clk 0:02:22]} 14. Nxe4 {[%clk 0:02:00]}
14... Nxe4 {[%clk 0:02:19.2]} 15. Bxe4 {[%clk 0:02:00.9]} 15... f5 {[%clk
0:02:17.3]} 16. Bc2 {[%clk 0:01:51.4]} 16... c5 {[%clk 0:02:08.3]} 17. Rfe1
{[%clk 0:01:35.8]} 17... Rfe8 {[%clk 0:02:06.4]} 18. dxc5 {[%clk 0:01:18.4]}
18... Bxc5 {[%clk 0:01:53.4]} 19. b4 {[%clk 0:01:14.7]} 19... Bd6 {[%clk
0:01:51.4]} 20. c5 {[%clk 0:01:13.6]} 20... Bb8 {[%clk 0:01:49.1]} 21. Bb3
{[%clk 0:01:14]} 21... Bf7 {[%clk 0:01:43.6]} 22. Ne5 {[%clk 0:01:13.8]} 22...
Nxe5 {[%clk 0:01:37.1]} 23. Bxe5 {[%clk 0:01:14.7]} 23... Bxe5 {[%clk
0:01:22.3]} 24. Qxe5 {[%clk 0:01:15.6]} 24... Qc7 {[%clk 0:01:22.4]} 25. f4
{[%clk 0:00:56.3]} 25... Qxe5 {[%clk 0:01:13.8]} 26. Rxe5 {[%clk 0:00:57.2]}
26... Kf8 {[%clk 0:01:13.1]} 27. Rae1 {[%clk 0:00:56.3]} 27... Rcd8 {[%clk
0:01:01]} 28. Bxe6 {[%clk 0:00:53]} 28... Bxe6 {[%clk 0:00:59.1]} 29. Rxe6
{[%clk 0:00:53.9]} 29... Rxe6 {[%clk 0:00:55.2]} 30. Rxe6 {[%clk 0:00:54.8]}
30... Rd4 {[%clk 0:00:53.9]} 31. Rb6 {[%clk 0:00:51.9]} 31... Rd7 {[%clk
0:00:51.6]} 32. Kf2 {[%clk 0:00:51.1]} 32... Ke7 {[%clk 0:00:49.4]} 33. Ke3
{[%clk 0:00:50.2]} 33... Kd8 {[%clk 0:00:45.7]} 34. c6 {[%clk 0:00:32.5]} 34...
Re7+ {[%clk 0:00:27.9]} 35. Kd3 {[%clk 0:00:28.7]} 35... bxc6 {[%clk 0:00:20.4]}
36. Rxc6 {[%clk 0:00:29.6]} 36... Re4 {[%clk 0:00:19.5]} 37. Rxa6 {[%clk
0:00:25.5]} 37... Rxf4 {[%clk 0:00:19]} 38. Ra7 {[%clk 0:00:25.7]} 38... g6
{[%clk 0:00:15.6]} 39. Rxh7 {[%clk 0:00:24.8]} 39... Rf2 {[%clk 0:00:14.9]} 40.
a4 {[%clk 0:00:19.8]} 40... Rxg2 {[%clk 0:00:14.3]} 41. a5 {[%clk 0:00:20.2]}
41... Kc8 {[%clk 0:00:13.8]} 42. b5 {[%clk 0:00:20.1]} 42... Rg1 {[%clk
0:00:12.1]} 43. a6 {[%clk 0:00:19.2]} 43... Ra1 {[%clk 0:00:09.8]} 44. Kc4
{[%clk 0:00:19.2]} 44... Kb8 {[%clk 0:00:09.2]} 45. Kc5 {[%clk 0:00:19.2]} 45...
Re1 {[%clk 0:00:08.5]} 46. b6 {[%clk 0:00:15.4]} 46... Re8 {[%clk 0:00:08.2]}
47. Kc6 {[%clk 0:00:12.4]} 47... Re6+ {[%clk 0:00:06.9]} 48. Kc5 {[%clk
0:00:12.5]} 48... Re8 {[%clk 0:00:07]} 49. Rg7 {[%clk 0:00:11.3]} 49... f4
{[%clk 0:00:06.2]} 50. Rxg6 {[%clk 0:00:09.9]} 50... Rf8 {[%clk 0:00:06.2]} 51.
a7+ {[%clk 0:00:08.1]} 51... Ka8 {[%clk 0:00:05.5]} 52. Kc6 {[%clk 0:00:08.2]}
52... f3 {[%clk 0:00:04.7]} 53. Kb5 {[%clk 0:00:04.5]} 53... f2 {[%clk
0:00:03.3]} 54. Rg8 {[%clk 0:00:01.8]} 54... f1=Q+ {[%clk 0:00:02.8]} 55. Kc6
{[%clk 0:00:02.7]} 55... Qf3+ {[%clk 0:00:02.3]} 56. Kc7 {[%clk 0:00:03]} 56...
Rxg8 {[%clk 0:00:02]} 57. b7+ {[%clk 0:00:03.9]} 57... Qxb7+ {[%clk 0:00:01.6]}
58. Kd6 {[%clk 0:00:04.8]} 58... Qxa7 {[%clk 0:00:02]} 59. Ke6 {[%clk
0:00:05.7]} 59... Qf2 {[%clk 0:00:02.3]} 60. Ke5 {[%clk 0:00:06.6]} 60... Qg3+
{[%clk 0:00:02.8]} 61. Ke6 {[%clk 0:00:07.5]} 61... Qxh3+ {[%clk 0:00:03.5]} 62.
Kd6 {[%clk 0:00:08.2]} 62... Qh7 {[%clk 0:00:04.2]} 63. Kc5 {[%clk 0:00:09]}
63... Rg6 {[%clk 0:00:04.8]} 64. Kd5 {[%clk 0:00:09.9]} 64... Qh5+ {[%clk
0:00:05.4]} 65. Ke4 {[%clk 0:00:10.8]} 65... Rg4+ {[%clk 0:00:05.9]} 66. Kf3
{[%clk 0:00:11.7]} 66... Qh3+ {[%clk 0:00:06.6]} 67. Kf2 {[%clk 0:00:12.4]}
67... Rg2+ {[%clk 0:00:07.3]} 68. Kf1 {[%clk 0:00:13.3]} 68... Qh1# {[%clk
0:00:08.1]} 0-1

[Event "*** Titled Tuesday Blitz"]
[Site "Chess.com"]
[Date "2021.03.09"]
[Round "1"]
[White "wonderfultime"]
[Black "ChainsOfFantasia"]
[Result "1-0"]
[WhiteElo "2979"]
[BlackElo "2478"]
[TimeControl "180+1"]
[EndTime "10:08:30 PST"]
[Termination "wonderfultime won by resignation"]

1. d4 {[%clk 0:02:57.8]} 1... Nf6 {[%clk 0:02:59.1]} 2. Nf3 {[%clk 0:02:57.4]}
2... d5 {[%clk 0:02:58.4]} 3. Bf4 {[%clk 0:02:55.2]} 3... c5 {[%clk 0:02:58.1]}
4. c3 {[%clk 0:02:53.7]} 4... Nc6 {[%clk 0:02:58.5]} 5. e3 {[%clk 0:02:51.8]}
5... cxd4 {[%clk 0:02:50.8]} 6. exd4 {[%clk 0:02:49.1]} 6... Bf5 {[%clk
0:02:46.2]} 7. Qb3 {[%clk 0:02:41.7]} 7... Qc8 {[%clk 0:02:46.2]} 8. Be2 {[%clk
0:02:40.8]} 8... e6 {[%clk 0:02:45.1]} 9. O-O {[%clk 0:02:40]} 9... Be7 {[%clk
0:02:44.3]} 10. Nbd2 {[%clk 0:02:39.7]} 10... h6 {[%clk 0:02:41.3]} 11. Rfe1
{[%clk 0:02:36.6]} 11... O-O {[%clk 0:02:41]} 12. Nf1 {[%clk 0:02:34]} 12... Ne4
{[%clk 0:02:38.1]} 13. Ng3 {[%clk 0:02:31.5]} 13... Nxg3 {[%clk 0:02:37.6]} 14.
hxg3 {[%clk 0:02:30.3]} 14... Qd7 {[%clk 0:02:35.8]} 15. Qd1 {[%clk 0:02:26.3]}
15... Bd6 {[%clk 0:02:34.3]} 16. Qd2 {[%clk 0:02:22.2]} 16... Rab8 {[%clk
0:02:29]} 17. a4 {[%clk 0:01:30.7]} 17... a6 {[%clk 0:02:27.8]} 18. a5 {[%clk
0:01:22.9]} 18... Rfc8 {[%clk 0:02:19.6]} 19. Bf1 {[%clk 0:01:19.9]} 19... Bxf4
{[%clk 0:02:16.7]} 20. Qxf4 {[%clk 0:01:12.1]} 20... Qc7 {[%clk 0:02:16.9]} 21.
Qxc7 {[%clk 0:01:05.8]} 21... Rxc7 {[%clk 0:02:17.8]} 22. Ra3 {[%clk 0:01:06.6]}
22... g5 {[%clk 0:02:11.4]} 23. Nd2 {[%clk 0:01:02.2]} 23... Kg7 {[%clk
0:02:02.3]} 24. Nf3 {[%clk 0:01:02.2]} 24... f6 {[%clk 0:01:54.2]} 25. Nd2
{[%clk 0:00:36]} 25... e5 {[%clk 0:01:45.2]} 26. dxe5 {[%clk 0:00:31.5]} 26...
fxe5 {[%clk 0:01:46.1]} 27. f3 {[%clk 0:00:32.1]} 27... Re7 {[%clk 0:01:39.1]}
28. Kf2 {[%clk 0:00:31.4]} 28... Rbe8 {[%clk 0:01:16.3]} 29. Ra4 {[%clk
0:00:25.6]} 29... Bc2 {[%clk 0:01:13.4]} 30. Raa1 {[%clk 0:00:21]} 30... Bg6
{[%clk 0:01:07.6]} 31. Kg1 {[%clk 0:00:20.9]} 31... h5 {[%clk 0:01:05]} 32. Ra4
{[%clk 0:00:17.1]} 32... Bc2 {[%clk 0:01:02.5]} 33. Raa1 {[%clk 0:00:17.3]}
33... Bf5 {[%clk 0:01:02.9]} 34. Be2 {[%clk 0:00:16.5]} 34... h4 {[%clk
0:01:00.8]} 35. gxh4 {[%clk 0:00:16.3]} 35... gxh4 {[%clk 0:01:01.7]} 36. Bd1
{[%clk 0:00:16.9]} 36... Kf6 {[%clk 0:01:01]} 37. Bb3 {[%clk 0:00:17.3]} 37...
Be6 {[%clk 0:00:56]} 38. Ra4 {[%clk 0:00:17.5]} 38... Rh7 {[%clk 0:00:53.1]} 39.
Kf2 {[%clk 0:00:18]} 39... Reh8 {[%clk 0:00:48.3]} 40. Rh1 {[%clk 0:00:17.6]}
40... h3 {[%clk 0:00:48.2]} 41. g4 {[%clk 0:00:17.5]} 41... Ke7 {[%clk
0:00:46.1]} 42. Kg3 {[%clk 0:00:16.5]} 42... h2 {[%clk 0:00:44.6]} 43. Nf1
{[%clk 0:00:15]} 43... e4 {[%clk 0:00:39.8]} 44. fxe4 {[%clk 0:00:14.5]} 44...
Rh3+ {[%clk 0:00:37.4]} 45. Kg2 {[%clk 0:00:14.8]} 45... Rd3 {[%clk 0:00:27.2]}
46. exd5 {[%clk 0:00:09.6]} 46... Bxd5+ {[%clk 0:00:19]} 47. Bxd5 {[%clk
0:00:10.5]} 47... Rxd5 {[%clk 0:00:19.6]} 48. Re4+ {[%clk 0:00:11.2]} 48... Kd6
{[%clk 0:00:19.5]} 49. Rxh2 {[%clk 0:00:11.2]} 49... Rxh2+ {[%clk 0:00:17.6]}
50. Kxh2 {[%clk 0:00:12.1]} 50... Nxa5 {[%clk 0:00:17.8]} 51. Ne3 {[%clk
0:00:11.3]} 51... Rd2+ {[%clk 0:00:17.1]} 52. Kg3 {[%clk 0:00:11.5]} 52... Rxb2
{[%clk 0:00:18]} 53. g5 {[%clk 0:00:11.4]} 53... Rb1 {[%clk 0:00:17.1]} 54. g6
{[%clk 0:00:11.5]} 54... Rg1+ {[%clk 0:00:16.2]} 55. Ng2 {[%clk 0:00:11.9]}
55... Nc6 {[%clk 0:00:07.3]} 56. g7 {[%clk 0:00:12.1]} 56... Ne7 {[%clk
0:00:08]} 57. Rxe7 {[%clk 0:00:12.4]} 57... Kxe7 {[%clk 0:00:08.9]} 58. g8=Q
{[%clk 0:00:12.9]} 58... Rd1 {[%clk 0:00:06.9]} 59. Qh7+ {[%clk 0:00:12.7]}
59... Kd6 {[%clk 0:00:06.2]} 60. Qxb7 {[%clk 0:00:12.5]} 60... Ra1 {[%clk
0:00:06.1]} 61. Qb6+ {[%clk 0:00:12.4]} 61... Kd5 {[%clk 0:00:06.1]} 62. Qd4+
{[%clk 0:00:13.3]} 62... Kc6 {[%clk 0:00:06.2]} 63. Ne3 {[%clk 0:00:14.2]} 63...
Rd1 {[%clk 0:00:03.8]} 64. Qxd1 {[%clk 0:00:13.9]} 1-0

[Event "*** Titled Tuesday Blitz"]
[Site "Chess.com"]
[Date "2021.03.09"]
[Round "1"]
[White "kuba2006"]
[Black "Iskusnyh"]
[Result "1-0"]
[WhiteElo "2338"]
[BlackElo "2610"]
[TimeControl "180+1"]
[EndTime "10:08:31 PST"]
[Termination "kuba2006 won on time"]

1. b3 {[%clk 0:03:00.9]} 1... d5 {[%clk 0:02:57.4]} 2. Bb2 {[%clk 0:03:01.8]}
2... Bf5 {[%clk 0:02:57.3]} 3. e3 {[%clk 0:03:00.5]} 3... e6 {[%clk 0:02:56.7]}
4. Nf3 {[%clk 0:03:00.9]} 4... h6 {[%clk 0:02:54.3]} 5. Be2 {[%clk 0:02:52]}
5... Nf6 {[%clk 0:02:53.7]} 6. O-O {[%clk 0:02:51.3]} 6... Be7 {[%clk
0:02:53.4]} 7. c4 {[%clk 0:02:48.8]} 7... O-O {[%clk 0:02:51.8]} 8. Nc3 {[%clk
0:02:31.6]} 8... c6 {[%clk 0:02:50]} 9. Ne5 {[%clk 0:02:21.9]} 9... Nbd7 {[%clk
0:02:40.4]} 10. f4 {[%clk 0:02:14.1]} 10... Bh7 {[%clk 0:02:30.7]} 11. d4 {[%clk
0:01:47.8]} 11... Bb4 {[%clk 0:01:56.1]} 12. Bd3 {[%clk 0:01:10.9]} 12... Bxd3
{[%clk 0:01:41.1]} 13. Qxd3 {[%clk 0:01:11.8]} 13... a5 {[%clk 0:01:38.4]} 14.
f5 {[%clk 0:01:02.7]} 14... exf5 {[%clk 0:01:28.1]} 15. Qxf5 {[%clk 0:01:03.6]}
15... Bxc3 {[%clk 0:01:17.9]} 16. Bxc3 {[%clk 0:01:02.6]} 16... Nxe5 {[%clk
0:01:17.6]} 17. dxe5 {[%clk 0:00:58.7]} 17... Ne4 {[%clk 0:01:16.8]} 18. Bb2
{[%clk 0:00:44.2]} 18... Qg5 {[%clk 0:01:15.7]} 19. Qxg5 {[%clk 0:00:26.7]}
19... hxg5 {[%clk 0:01:13.4]} 20. cxd5 {[%clk 0:00:22.5]} 20... cxd5 {[%clk
0:01:14.3]} 21. Rfd1 {[%clk 0:00:19.1]} 21... Rfd8 {[%clk 0:01:09.4]} 22. Rac1
{[%clk 0:00:18.3]} 22... Rac8 {[%clk 0:01:08.4]} 23. Bd4 {[%clk 0:00:14.2]}
23... Rc6 {[%clk 0:00:49.9]} 24. Rxc6 {[%clk 0:00:13.1]} 24... bxc6 {[%clk
0:00:50.8]} 25. Rc1 {[%clk 0:00:11.6]} 25... Rc8 {[%clk 0:00:49.2]} 26. Bb6
{[%clk 0:00:11.4]} 26... c5 {[%clk 0:00:37.2]} 27. Bxa5 {[%clk 0:00:10.4]} 27...
Ra8 {[%clk 0:00:36.9]} 28. Bb6 {[%clk 0:00:10.6]} 28... Rxa2 {[%clk 0:00:34.7]}
29. Bxc5 {[%clk 0:00:10.7]} 29... g4 {[%clk 0:00:27]} 30. Bd4 {[%clk 0:00:09.6]}
30... Ra3 {[%clk 0:00:19.9]} 31. b4 {[%clk 0:00:04.9]} 31... Rb3 {[%clk
0:00:20]} 32. Bc5 {[%clk 0:00:04.2]} 32... Kh7 {[%clk 0:00:19.5]} 33. h3 {[%clk
0:00:04.3]} 33... g3 {[%clk 0:00:19.1]} 34. Kf1 {[%clk 0:00:04.1]} 34... Rb2
{[%clk 0:00:18.6]} 35. Kg1 {[%clk 0:00:04.1]} 35... Kg6 {[%clk 0:00:17.8]} 36.
Be7 {[%clk 0:00:04.1]} 36... Kf5 {[%clk 0:00:16.6]} 37. Bd6 {[%clk 0:00:04.7]}
37... Ke6 {[%clk 0:00:15.5]} 38. Bf8 {[%clk 0:00:04.8]} 38... g6 {[%clk
0:00:13.8]} 39. Rc6+ {[%clk 0:00:04.8]} 39... Kxe5 {[%clk 0:00:11.9]} 40. Rc1
{[%clk 0:00:04.8]} 40... Ke6 {[%clk 0:00:10.1]} 41. Bc5 {[%clk 0:00:04]} 41...
g5 {[%clk 0:00:06.9]} 42. Bf8 {[%clk 0:00:03.7]} 42... f6 {[%clk 0:00:06.6]} 43.
Rd1 {[%clk 0:00:02.8]} 43... f5 {[%clk 0:00:05.2]} 44. Ra1 {[%clk 0:00:03.1]}
44... f4 {[%clk 0:00:05]} 45. Ra6+ {[%clk 0:00:03]} 45... Kf5 {[%clk 0:00:04.3]}
46. Ra1 {[%clk 0:00:03.3]} 46... fxe3 {[%clk 0:00:03.7]} 47. Rf1+ {[%clk
0:00:03.4]} 47... Nf2 {[%clk 0:00:03]} 48. Re1 {[%clk 0:00:03.5]} 48... Ke4
{[%clk 0:00:03.2]} 49. Bc5 {[%clk 0:00:03]} 49... e2 {[%clk 0:00:02.4]} 50. Bxf2
{[%clk 0:00:02.2]} 50... gxf2+ {[%clk 0:00:01.9]} 51. Kxf2 {[%clk 0:00:03.1]}
51... d4 {[%clk 0:00:02.3]} 52. Rxe2+ {[%clk 0:00:02.7]} 52... Rxe2+ {[%clk
0:00:02.2]} 53. Kxe2 {[%clk 0:00:03.6]} 53... d3+ {[%clk 0:00:02.2]} 54. Kd2
{[%clk 0:00:04.1]} 54... Kd4 {[%clk 0:00:02.6]} 55. b5 {[%clk 0:00:04.7]} 55...
Kc5 {[%clk 0:00:03.5]} 56. Kxd3 {[%clk 0:00:04.5]} 56... Kxb5 {[%clk 0:00:04.4]}
57. Ke4 {[%clk 0:00:05.2]} 57... Kc6 {[%clk 0:00:05.3]} 58. Kf5 {[%clk
0:00:05.7]} 58... Kd6 {[%clk 0:00:06.2]} 59. Kxg5 {[%clk 0:00:06.2]} 59... Ke6
{[%clk 0:00:07.1]} 60. Kg6 {[%clk 0:00:06.9]} 60... Ke7 {[%clk 0:00:08]} 61. Kg7
{[%clk 0:00:07.6]} 1-0

[Event "*** Titled Tuesday Blitz"]
[Site "Chess.com"]
[Date "2021.03.09"]
[Round "1"]
[White "13MiRacLe"]
[Black "kakakz"]
[Result "1/2-1/2"]
[WhiteElo "2698"]
[BlackElo "2393"]
[TimeControl "180+1"]
[EndTime "10:08:33 PST"]
[Termination "Game drawn by repetition"]

1. e4 {[%clk 0:03:00.9]} 1... e6 {[%clk 0:02:53.3]} 2. d4 {[%clk 0:02:59.7]}
2... d5 {[%clk 0:02:53.4]} 3. Nc3 {[%clk 0:03:00.2]} 3... Bb4 {[%clk 0:02:52.4]}
4. e5 {[%clk 0:03:00.4]} 4... b6 {[%clk 0:02:51.4]} 5. a3 {[%clk 0:03:00.7]}
5... Bxc3+ {[%clk 0:02:50.4]} 6. bxc3 {[%clk 0:03:01.6]} 6... Qd7 {[%clk
0:02:49]} 7. Qg4 {[%clk 0:02:59.2]} 7... f5 {[%clk 0:02:44.3]} 8. Qg3 {[%clk
0:02:59.5]} 8... Ba6 {[%clk 0:02:35.4]} 9. Bxa6 {[%clk 0:02:56.2]} 9... Nxa6
{[%clk 0:02:36.3]} 10. Ne2 {[%clk 0:02:56.1]} 10... Nb8 {[%clk 0:02:28.4]} 11.
Nf4 {[%clk 0:02:54.8]} 11... g6 {[%clk 0:02:28]} 12. h4 {[%clk 0:02:53.5]} 12...
Nc6 {[%clk 0:02:17.8]} 13. h5 {[%clk 0:02:52.2]} 13... gxh5 {[%clk 0:02:17]} 14.
Qg5 {[%clk 0:01:49.6]} 14... Qe7 {[%clk 0:02:01.6]} 15. Qxh5+ {[%clk 0:01:45.4]}
15... Kd7 {[%clk 0:01:58.6]} 16. a4 {[%clk 0:01:39.5]} 16... Qe8 {[%clk
0:01:50]} 17. Qg5 {[%clk 0:01:31.8]} 17... Nge7 {[%clk 0:01:49.2]} 18. Rh6
{[%clk 0:01:06.7]} 18... Ng6 {[%clk 0:01:22.7]} 19. Nxg6 {[%clk 0:01:01.6]}
19... hxg6 {[%clk 0:01:22.3]} 20. Rxg6 {[%clk 0:01:02.1]} 20... Rg8 {[%clk
0:01:09]} 21. Rg7+ {[%clk 0:00:45.8]} 21... Rxg7 {[%clk 0:01:05.3]} 22. Qxg7+
{[%clk 0:00:46.7]} 22... Qe7 {[%clk 0:01:05.8]} 23. Qxe7+ {[%clk 0:00:46]} 23...
Kxe7 {[%clk 0:01:04]} 24. Ke2 {[%clk 0:00:44.7]} 24... Rh8 {[%clk 0:01:02.7]}
25. Bg5+ {[%clk 0:00:42.8]} 25... Kf7 {[%clk 0:01:01.7]} 26. Rg1 {[%clk
0:00:31.3]} 26... Na5 {[%clk 0:00:51.6]} 27. Bf6 {[%clk 0:00:30.3]} 27... Rh2
{[%clk 0:00:44]} 28. f3 {[%clk 0:00:25.5]} 28... Nc4 {[%clk 0:00:39.1]} 29. Kf2
{[%clk 0:00:25.6]} 29... a5 {[%clk 0:00:38.1]} 30. Bd8 {[%clk 0:00:21.2]} 30...
Kg6 {[%clk 0:00:29.8]} 31. Bxc7 {[%clk 0:00:19.4]} 31... f4 {[%clk 0:00:29.9]}
32. Rb1 {[%clk 0:00:17.5]} 32... Ne3 {[%clk 0:00:29.5]} 33. Rg1 {[%clk 0:00:17]}
33... Nc4 {[%clk 0:00:27.3]} 34. Bd8 {[%clk 0:00:15.7]} 34... Kf5 {[%clk
0:00:25.8]} 35. Re1 {[%clk 0:00:13.6]} 35... Ne3 {[%clk 0:00:24.8]} 36. Rxe3
{[%clk 0:00:10.6]} 36... fxe3+ {[%clk 0:00:24.7]} 37. Kxe3 {[%clk 0:00:11.5]}
37... Rxg2 {[%clk 0:00:25.2]} 38. Bxb6 {[%clk 0:00:11.9]} 38... Rxc2 {[%clk
0:00:24.3]} 39. Bxa5 {[%clk 0:00:12.1]} 39... Ra2 {[%clk 0:00:25]} 40. Bb4
{[%clk 0:00:11.7]} 40... Rxa4 {[%clk 0:00:25.3]} 41. Kd3 {[%clk 0:00:12.6]}
41... Kf4 {[%clk 0:00:22.7]} 42. Kc2 {[%clk 0:00:13.1]} 42... Kxf3 {[%clk
0:00:19.9]} 43. Kb3 {[%clk 0:00:13.8]} 43... Ra6 {[%clk 0:00:19.9]} 44. Bc5
{[%clk 0:00:10.6]} 44... Ke4 {[%clk 0:00:19.3]} 45. Kb4 {[%clk 0:00:11.2]} 45...
Ra2 {[%clk 0:00:17.2]} 46. Kb5 {[%clk 0:00:11.4]} 46... Rb2+ {[%clk 0:00:17.6]}
47. Bb4 {[%clk 0:00:10.5]} 47... Kd3 {[%clk 0:00:17.1]} 48. Kc5 {[%clk
0:00:10.8]} 48... Ke4 {[%clk 0:00:17.1]} 49. Kd6 {[%clk 0:00:10.9]} 49... Kf5
{[%clk 0:00:18]} 50. Kc5 {[%clk 0:00:10.8]} 50... Rb3 {[%clk 0:00:18.4]} 51. Kd6
{[%clk 0:00:10.4]} 51... Rb1 {[%clk 0:00:18.7]} 52. Kc5 {[%clk 0:00:10.6]} 52...
Rc1 {[%clk 0:00:19.6]} 53. Kd6 {[%clk 0:00:10]} 53... Rd1 {[%clk 0:00:20.1]} 54.
Kc5 {[%clk 0:00:10.2]} 54... Rd3 {[%clk 0:00:20.7]} 55. Kb5 {[%clk 0:00:10.4]}
55... Rf3 {[%clk 0:00:21.1]} 56. Kc6 {[%clk 0:00:10.7]} 56... Rg3 {[%clk
0:00:21.5]} 57. Kc5 {[%clk 0:00:11.3]} 57... Rg8 {[%clk 0:00:18.9]} 58. Kd6
{[%clk 0:00:11.6]} 58... Rc8 {[%clk 0:00:18.4]} 59. Kd7 {[%clk 0:00:11.9]} 59...
Rc4 {[%clk 0:00:18.1]} 60. Kd6 {[%clk 0:00:12.5]} 60... Rc8 {[%clk 0:00:18.1]}
61. Kd7 {[%clk 0:00:13]} 61... Ra8 {[%clk 0:00:18.2]} 62. Kd6 {[%clk 0:00:13.5]}
62... Ra6+ {[%clk 0:00:18.5]} 63. Ke7 {[%clk 0:00:13.2]} 63... Ke4 {[%clk
0:00:17.6]} 64. Kd7 {[%clk 0:00:13.4]} 64... Kf5 {[%clk 0:00:17.8]} 65. Ke7
{[%clk 0:00:13]} 65... Ra4 {[%clk 0:00:18.4]} 66. Kd7 {[%clk 0:00:12.7]} 66...
Ra2 {[%clk 0:00:18.5]} 67. Ke7 {[%clk 0:00:12.1]} 67... Rh2 {[%clk 0:00:19.4]}
68. Kd7 {[%clk 0:00:12.6]} 68... Rh7+ {[%clk 0:00:18.4]} 69. Kd6 {[%clk
0:00:13.1]} 69... Rh8 {[%clk 0:00:18.7]} 70. Kd7 {[%clk 0:00:13.4]} 70... Ra8
{[%clk 0:00:18.2]} 71. Ke7 {[%clk 0:00:13.7]} 71... Ra7+ {[%clk 0:00:18.5]} 72.
Kd6 {[%clk 0:00:14.1]} 72... Ra6+ {[%clk 0:00:19.2]} 73. Ke7 {[%clk 0:00:14.5]}
1/2-1/2

[Event "*** Titled Tuesday Blitz"]
[Site "Chess.com"]
[Date "2021.03.09"]
[Round "1"]
[White "Iball95"]
[Black "SnekkerAndersen"]
[Result "0-1"]
[WhiteElo "2654"]
[BlackElo "2387"]
[TimeControl "180+1"]
[EndTime "10:08:33 PST"]
[Termination "SnekkerAndersen won on time"]

1. e4 {[%clk 0:02:57.1]} 1... d6 {[%clk 0:02:58]} 2. d4 {[%clk 0:02:56.7]} 2...
Nf6 {[%clk 0:02:58.4]} 3. Nc3 {[%clk 0:02:56.6]} 3... e5 {[%clk 0:02:58.3]} 4.
dxe5 {[%clk 0:02:57.5]} 4... dxe5 {[%clk 0:02:59.2]} 5. Qxd8+ {[%clk 0:02:57.8]}
5... Kxd8 {[%clk 0:03:00.1]} 6. Bg5 {[%clk 0:02:57]} 6... Be6 {[%clk 0:02:59.4]}
7. Nf3 {[%clk 0:02:56.2]} 7... Nd7 {[%clk 0:02:58.5]} 8. Nb5 {[%clk 0:02:57.1]}
8... c6 {[%clk 0:02:56.3]} 9. Nc3 {[%clk 0:02:51.1]} 9... Kc7 {[%clk 0:02:56.2]}
10. Bd3 {[%clk 0:02:49.7]} 10... h6 {[%clk 0:02:52.3]} 11. Bh4 {[%clk
0:02:48.9]} 11... Nh5 {[%clk 0:02:51.9]} 12. O-O-O {[%clk 0:02:45.7]} 12... Nf4
{[%clk 0:02:45.7]} 13. Bg3 {[%clk 0:02:43.9]} 13... Nxd3+ {[%clk 0:02:45.7]} 14.
cxd3 {[%clk 0:02:41.6]} 14... f6 {[%clk 0:02:46.6]} 15. d4 {[%clk 0:02:41.3]}
15... Bd6 {[%clk 0:02:43.5]} 16. dxe5 {[%clk 0:02:40.2]} 16... Nxe5 {[%clk
0:02:40.3]} 17. Nxe5 {[%clk 0:02:34]} 17... Bxe5 {[%clk 0:02:40.2]} 18. Kc2
{[%clk 0:01:51.9]} 18... Rad8 {[%clk 0:02:34.8]} 19. b3 {[%clk 0:01:38.2]} 19...
Rxd1 {[%clk 0:02:25.3]} 20. Rxd1 {[%clk 0:01:34.1]} 20... g5 {[%clk 0:02:20.6]}
21. Ne2 {[%clk 0:01:29.2]} 21... h5 {[%clk 0:02:11.3]} 22. h3 {[%clk 0:00:23.4]}
22... Bxg3 {[%clk 0:01:52.5]} 23. Nxg3 {[%clk 0:00:24.3]} 23... h4 {[%clk
0:01:52.4]} 24. Ne2 {[%clk 0:00:23]} 24... Rd8 {[%clk 0:01:51.5]} 25. Rxd8
{[%clk 0:00:22.3]} 25... Kxd8 {[%clk 0:01:52.4]} 26. f3 {[%clk 0:00:23.1]} 26...
Ke7 {[%clk 0:01:52.5]} 27. Kc3 {[%clk 0:00:23.2]} 27... Kd6 {[%clk 0:01:49.4]}
28. a3 {[%clk 0:00:23.4]} 28... Ke5 {[%clk 0:01:48.4]} 29. b4 {[%clk 0:00:23.6]}
29... b6 {[%clk 0:01:46]} 30. Kd3 {[%clk 0:00:23.5]} 30... Bc8 {[%clk
0:01:44.2]} 31. Ke3 {[%clk 0:00:22.7]} 31... Ba6 {[%clk 0:01:38.9]} 32. f4+
{[%clk 0:00:22.5]} 32... Kd6 {[%clk 0:01:22.5]} 33. Nd4 {[%clk 0:00:20]} 33...
c5 {[%clk 0:01:18.6]} 34. bxc5+ {[%clk 0:00:19.6]} 34... bxc5 {[%clk 0:01:18.7]}
35. Nf5+ {[%clk 0:00:18.6]} 35... Ke6 {[%clk 0:01:17.8]} 36. g3 {[%clk
0:00:17.5]} 36... hxg3 {[%clk 0:01:03.4]} 37. Nxg3 {[%clk 0:00:16.7]} 37... Bb7
{[%clk 0:00:58.1]} 38. Ne2 {[%clk 0:00:15.9]} 38... Ba6 {[%clk 0:00:56.1]} 39.
Nc3 {[%clk 0:00:14.1]} 39... Bf1 {[%clk 0:00:55.8]} 40. Na4 {[%clk 0:00:10.3]}
40... Kd6 {[%clk 0:00:49.5]} 41. e5+ {[%clk 0:00:10.1]} 41... fxe5 {[%clk
0:00:49.1]} 42. fxe5+ {[%clk 0:00:11]} 42... Kd5 {[%clk 0:00:45.8]} 43. Nc3+
{[%clk 0:00:10.2]} 43... Kxe5 {[%clk 0:00:45.5]} 44. Ne4 {[%clk 0:00:11.1]}
44... Bxh3 {[%clk 0:00:44.1]} 45. Nxg5 {[%clk 0:00:11.2]} 45... Bf5 {[%clk
0:00:37.6]} 46. Nf3+ {[%clk 0:00:10.6]} 46... Kd5 {[%clk 0:00:38.1]} 47. Kd2
{[%clk 0:00:10.7]} 47... Kc4 {[%clk 0:00:38.5]} 48. Ne5+ {[%clk 0:00:10.2]}
48... Kb3 {[%clk 0:00:38.8]} 49. Nc6 {[%clk 0:00:10.4]} 49... a6 {[%clk
0:00:27.4]} 50. Nb8 {[%clk 0:00:06.4]} 50... a5 {[%clk 0:00:26.5]} 51. Nc6
{[%clk 0:00:06.8]} 51... a4 {[%clk 0:00:26]} 52. Na5+ {[%clk 0:00:07.2]} 52...
Kxa3 {[%clk 0:00:25.3]} 53. Kc3 {[%clk 0:00:08.1]} 53... Ka2 {[%clk 0:00:19.9]}
54. Nb7 {[%clk 0:00:07.9]} 54... Kb1 {[%clk 0:00:16]} 55. Nxc5 {[%clk
0:00:05.8]} 55... a3 {[%clk 0:00:16.5]} 56. Nb3 {[%clk 0:00:03.8]} 56... Be6
{[%clk 0:00:13.9]} 57. Nd2+ {[%clk 0:00:04]} 57... Kc1 {[%clk 0:00:14.4]} 58.
Ne4 {[%clk 0:00:01.1]} 58... a2 {[%clk 0:00:13.7]} 59. Kd3 {[%clk 0:00:01.1]}
59... a1=Q {[%clk 0:00:13.3]} 60. Nc3 {[%clk 0:00:01.8]} 60... Bf5+ {[%clk
0:00:11.2]} 61. Kd4 {[%clk 0:00:01.7]} 61... Kd2 {[%clk 0:00:11.2]} 0-1